bitfinex/quotes_SOLUSD_20250602
["timestamp","ask_amount","ask_price","bid_price","bid_amount"]
[1748903119937,27.20023349,156.74,156.69,27.20023349]
[1748903120642,27.20023349,156.73,156.68,33.58265392]
[1748903121633,27.20023349,156.72,156.68,6.38242043]
[1748903121840,27.20023349,156.71,156.68,6.38242043]
[1748903122018,27.20023349,156.71,156.67,14.06]
[1748903122222,27.20023349,156.7,156.67,20.44275411]
[1748903123034,26.0,156.74,156.64,6.38406537]
[1748903123237,27.20023349,156.68,156.64,20.42406537]
[1748903123545,27.20023349,156.69,156.64,47.62429886]
[1748903123745,27.20023349,156.69,156.64,63.58446229]
[1748903123932,26.0,156.74,156.67,27.20023349]
[1748903124247,27.20023349,156.71,156.67,27.20023349]
[1748903124637,26.0,156.75,156.68,33.58266902]
[1748903124848,26.0,156.75,156.69,27.20023349]
[1748903125038,27.20023349,156.74,156.69,27.20023349]
[1748903125243,27.20023349,156.73,156.68,33.58266902]
[1748903125428,45.18,156.76,156.68,49.53875786]
[1748903125629,27.20023349,156.73,156.68,49.53875786]
[1748903125927,27.20023349,156.72,156.68,6.38243553]
[1748903126126,27.20023349,156.69,156.66,6.38325035]
[1748903126730,27.20023349,156.69,156.65,6.38365783]
[1748903127533,6.38053789,156.73,156.65,6.38365783]
[1748903127740,27.20023349,156.7,156.65,33.58389132]
[1748903128344,27.20023349,156.7,156.65,49.5430359]
[1748903128959,27.20023349,156.68,156.65,6.38365783]
[1748903129257,27.20023349,156.66,156.64,20.42396358]
[1748903129431,27.20023349,156.67,156.64,20.42396358]
[1748903130455,8.00586679,156.71,156.64,20.42396358]
[1748903130634,27.20023349,156.68,156.64,20.42396358]
[1748903130835,27.20023349,156.67,156.64,20.42396358]
[1748903131137,27.20023349,156.65,156.58,91.88]
[1748903131349,27.20023349,156.64,156.6,27.20023349]
[1748903131553,27.20023349,156.64,156.59,47.62633732]
[1748903132327,27.20023349,156.64,156.59,20.42610383]
[1748903132547,27.20023349,156.64,156.59,47.62633732]
[1748903132748,27.20023349,156.65,156.62,6.3848806]
[1748903133537,44.94,156.67,156.62,6.3848806]
[1748903133833,146.4,156.69,156.62,6.3848806]
[1748903133834,146.4,156.69,156.63,27.20023349]
[1748903134034,44.9,156.73,156.66,27.20023349]
[1748903134337,27.20023349,156.71,156.62,22.3470821]
[1748903134542,27.20023349,156.68,156.63,27.20023349]
[1748903134951,6.38111501,156.72,156.64,6.38406537]
[1748903135156,27.20023349,156.7,156.65,27.20023349]
[1748903136662,27.20023349,156.7,156.61,22.63283216]
[1748903136963,27.20023349,156.69,156.64,27.20023349]
[1748903137266,27.20023349,156.68,156.63,27.20023349]
[1748903137458,27.20023349,156.67,156.62,27.20023349]
[1748903137662,27.20023349,156.67,156.61,22.34850902]
[1748903138040,27.20023349,156.67,156.62,27.20023349]
[1748903138437,27.20023349,156.68,156.63,27.20023349]
[1748903138637,6.38085605,156.72,156.61,15.96322073]
[1748903138836,27.20023349,156.68,156.63,27.20023349]
[1748903139260,27.20023349,156.67,156.61,15.96322073]
[1748903139564,27.20023349,156.67,156.62,27.20023349]
[1748903140264,27.20023349,156.67,156.61,15.96322073]
[1748903140265,27.20023349,156.65,156.61,22.34850902]
[1748903140858,44.72,156.68,156.61,22.34850902]
[1748903140859,27.20023349,156.64,156.61,6.38528829]
[1748903142941,27.20023349,156.64,156.61,22.34850902]
[1748903143264,27.20023349,156.65,156.61,22.34850902]
[1748903144137,146.4,156.67,156.61,22.34850902]
[1748903144138,27.20023349,156.64,156.61,22.34850902]
[1748903144341,27.20023349,156.62,156.59,36.39135554]
[1748903144840,6.3016,156.65,156.61,27.20023349]
[1748903145062,33.50183349,156.65,156.61,27.20023349]
[1748903145546,6.3016,156.65,156.61,27.20023349]
[1748903145761,6.3016,156.65,156.6,27.20023349]
[1748903146139,27.20023349,156.64,156.6,27.20023349]
[1748903146341,27.20023349,156.64,156.61,22.34850902]
[1748903148366,6.3016,156.65,156.61,22.34850902]
[1748903148548,27.20023349,156.64,156.61,22.34850902]
[1748903149668,6.3016,156.65,156.61,22.34850902]
[1748903150646,6.2485,156.69,156.64,27.20023349]
[1748903150853,27.20023349,156.7,156.66,27.20023349]
[1748903151362,27.20023349,156.7,156.65,27.20023349]
[1748903151544,44.38,156.71,156.65,27.20023349]
[1748903151750,27.20023349,156.7,156.65,27.20023349]
[1748903152074,71.54023349,156.7,156.65,27.20023349]
[1748903152277,71.54023349,156.7,156.61,54.27495049]
[1748903152872,27.20023349,156.69,156.64,27.20023349]
[1748903153187,71.48023349,156.68,156.63,27.20023349]
[1748903153875,71.50023349,156.68,156.63,27.20023349]
[1748903154077,44.3,156.68,156.63,27.20023349]
[1748903154249,44.3,156.68,156.65,27.20023349]
[1748903154780,44.3,156.68,156.66,6.38325035]
[1748903155283,1.6596,156.72,156.66,22.34137622]
[1748903155473,7.9081,156.77,156.66,67.81762797]
[1748903155675,7.9081,156.77,156.7,27.20023349]
[1748903155886,27.20023349,156.76,156.71,27.20023349]
[1748903156401,6.2485,156.77,156.73,27.20023349]
[1748903156558,6.2485,156.77,156.72,27.20023349]
[1748903156882,33.44873349,156.77,156.73,27.20023349]
[1748903157681,33.44873349,156.77,156.72,27.20023349]
[1748903157893,6.2485,156.77,156.72,27.20023349]
[1748903158191,33.44873349,156.77,156.72,27.20023349]
[1748903158379,6.2485,156.77,156.73,27.20023349]
[1748903158685,33.44873349,156.77,156.73,27.20023349]
[1748903158870,33.44873349,156.77,156.72,27.20023349]
[1748903159567,27.20023349,156.76,156.69,54.24723976]
[1748903159757,27.20023349,156.75,156.7,27.20023349]
[1748903160184,27.20023349,156.76,156.71,27.20023349]
[1748903160561,27.20023349,156.75,156.69,22.33709872]
[1748903160758,6.2485,156.77,156.71,27.20023349]
[1748903160979,6.2485,156.77,156.73,22.33139794]
[1748903160980,33.44873349,156.77,156.73,22.33139794]
[1748903161180,6.2485,156.77,156.73,22.33139794]
[1748903161362,33.44873349,156.77,156.73,22.33139794]
[1748903161692,6.2485,156.77,156.73,6.38039941]
[1748903161996,27.20023349,156.76,156.73,6.38039941]
[1748903162278,27.20023349,156.77,156.73,22.33139794]
[1748903162471,27.20023349,156.78,156.73,49.53163143]
[1748903163674,27.20023349,156.79,156.74,27.20023349]
[1748903163989,27.20023349,156.78,156.73,63.07163143]
[1748903164562,27.20023349,156.79,156.74,27.20023349]
[1748903164973,7.8292,156.81,156.73,35.87139794]
[1748903165182,27.20023349,156.8,156.73,35.87139794]
[1748903165482,7.8292,156.81,156.74,27.20023349]
[1748903165483,27.20023349,156.79,156.74,27.20023349]
[1748903166187,27.20023349,156.78,156.74,27.20023349]
[1748903166372,27.20023349,156.79,156.74,27.20023349]
[1748903166562,146.4,156.8,156.74,27.20023349]
[1748903166767,27.20023349,156.79,156.74,27.20023349]
[1748903166964,27.20023349,156.79,156.73,67.773395]
[1748903167162,146.4,156.8,156.73,67.773395]
[1748903167768,2.5143718,156.83,156.75,0.14216157]
[1748903168085,2.5143718,156.83,156.79,27.20023349]
[1748903168281,2.5143718,156.83,156.81,27.20023349]
[1748903169279,29.71460529,156.83,156.81,6.37701974]
[1748903169466,2.5143718,156.83,156.81,6.37701974]
[1748903169891,2.5143718,156.83,156.8,19.91741815]
[1748903169892,27.20023349,156.82,156.8,19.91741815]
[1748903170259,27.20023349,156.81,156.8,19.91741815]
[1748903170865,27.20023349,156.81,156.8,13.54]
[1748903171067,146.4,156.8,156.75,19.7192017]
[1748903171303,27.20023349,156.77,156.75,19.7192017]
[1748903171589,27.20023349,156.78,156.75,19.7192017]
[1748903171796,27.20023349,156.76,156.75,13.34]
[1748903172095,146.4,156.8,156.75,13.34]
[1748903172274,27.20023349,156.76,156.75,19.71958532]
[1748903172475,27.20023349,156.77,156.75,19.71958532]
[1748903172791,27.20023349,156.78,156.75,19.71958532]
[1748903173002,146.4,156.8,156.75,19.71958532]
[1748903173168,146.4,156.8,156.76,27.20023349]
[1748903173585,27.20023349,156.79,156.75,35.66854863]
[1748903173787,27.20023349,156.78,156.75,35.66854863]
[1748903173986,27.20023349,156.76,156.75,19.71958532]
[1748903175401,27.20023349,156.76,156.75,13.34]
[1748903175603,27.20023349,156.76,156.73,6.38034057]
[1748903175604,146.4,156.75,156.7,105.2]
[1748903175798,27.20023349,156.72,156.7,111.58147061]
[1748903176010,27.20023349,156.71,156.7,19.72147061]
[1748903176301,27.20023349,156.71,156.7,13.34]
[1748903178893,27.20023349,156.71,156.65,13.34]
[1748903179104,27.20023349,156.66,156.65,13.34]
[1748903179475,27.20023349,156.66,156.61,6.38528829]
[1748903179700,6.382459,156.68,156.61,6.38528829]
[1748903179701,27.20023349,156.63,156.61,6.38528829]
[1748903179999,27.20023349,156.62,156.6,111.56557005]
[1748903180303,27.20023349,156.61,156.6,111.56557005]
[1748903180684,27.20023349,156.61,156.55,13.34]
[1748903180900,27.20023349,156.58,156.55,13.34]
[1748903181202,27.20023349,156.56,156.55,19.72773554]
[1748903182204,44.34,156.62,156.55,62.89730789]
[1748903182403,27.20023349,156.6,156.56,27.20023349]
[1748903182614,27.20023349,156.6,156.55,35.6970744]
[1748903182814,27.20023349,156.58,156.55,35.6970744]
[1748903183013,27.20023349,156.57,156.55,19.72773554]
[1748903183173,76.80611995,156.65,156.55,19.72773554]
[1748903183174,27.20023349,156.56,156.55,19.72773554]
[1748903183597,146.4,156.64,156.55,19.72773554]
[1748903183797,27.20023349,156.59,156.55,19.72773554]
[1748903183979,27.20023349,156.6,156.55,46.92796903]
[1748903184179,27.20023349,156.6,156.55,62.89730789]
[1748903185316,27.20023349,156.59,156.55,62.89730789]
[1748903185778,27.20023349,156.59,156.55,35.6970744]
[1748903185975,146.4,156.64,156.55,35.6970744]
[1748903185976,146.4,156.64,156.57,27.20023349]
[1748903186205,27.20023349,156.63,156.59,27.20023349]
[1748903186404,27.20023349,156.62,156.58,27.20023349]
[1748903186712,27.20023349,156.6,156.56,44.16]
[1748903186881,27.20023349,156.59,156.55,35.6970744]
[1748903189211,27.20023349,156.58,156.55,35.6970744]
[1748903190309,27.20023349,156.59,156.55,35.6970744]
[1748903190522,27.20023349,156.56,156.55,19.72773554]
[1748903190825,27.20023349,156.58,156.55,35.6970744]
[1748903191181,27.20023349,156.64,156.57,27.20023349]
[1748903191406,147.9863,156.66,156.6,27.20023349]
[1748903191595,27.20023349,156.65,156.6,27.20023349]
[1748903191793,27.20023349,156.65,156.61,22.34850902]
[1748903192208,173.60023349,156.66,156.61,49.54874251]
[1748903192502,27.20023349,156.65,156.61,49.54874251]
[1748903192690,27.20023349,156.65,156.61,22.34850902]
[1748903192894,146.4,156.66,156.61,6.38528829]
[1748903192895,27.20023349,156.63,156.61,6.38528829]
[1748903193814,27.20023349,156.64,156.59,27.20023349]
[1748903193990,146.4,156.66,156.63,27.20023349]
[1748903194190,1.5863,156.7,156.63,13.34]
[1748903194490,27.20023349,156.67,156.63,13.34]
[1748903194899,27.20023349,156.66,156.63,13.34]
[1748903195891,27.20023349,156.65,156.64,6.38406537]
[1748903196388,27.20023349,156.66,156.64,6.38406537]
[1748903197010,27.20023349,156.69,156.64,49.54446229]
[1748903197189,6.2103,156.71,156.66,27.20023349]
[1748903197385,33.41053349,156.71,156.66,27.20023349]
[1748903197692,33.41053349,156.71,156.64,54.26455566]
[1748903197901,27.20023349,156.7,156.65,27.20023349]
[1748903198683,33.41053349,156.71,156.66,27.20023349]
[1748903198884,27.20023349,156.7,156.66,27.20023349]
[1748903199088,27.20023349,156.7,156.64,54.26455566]
[1748903199291,27.20023349,156.7,156.66,27.20023349]
[1748903199497,33.41053349,156.71,156.66,27.20023349]
[1748903199818,27.20023349,156.71,156.67,27.20023349]
[1748903200112,27.20023349,156.71,156.68,22.33852437]
[1748903200313,27.20023349,156.72,156.68,22.33852437]
[1748903200486,173.60023349,156.73,156.68,49.53875786]
[1748903200904,146.4,156.73,156.69,40.28023349]
[1748903201219,146.4,156.73,156.7,27.20023349]
[1748903201393,146.4,156.73,156.69,40.28023349]
[1748903201598,173.60023349,156.73,156.69,13.08]
[1748903201798,146.4,156.73,156.69,13.08]
[1748903202012,173.60023349,156.73,156.69,13.08]
[1748903202216,173.60023349,156.73,156.7,22.33567325]
[1748903203015,146.4,156.73,156.7,22.33567325]
[1748903203315,173.60023349,156.73,156.7,22.33567325]
[1748903203820,146.4,156.73,156.7,22.33567325]
[1748903205494,27.20023349,156.72,156.7,22.33567325]
[1748903205821,27.20023349,156.72,156.7,6.38162093]
[1748903205998,27.20023349,156.71,156.7,6.38162093]
[1748903206604,146.4,156.7,156.65,0.5]
[1748903206802,33.67513349,156.71,156.64,15.95928326]
[1748903206803,27.20023349,156.68,156.66,6.38325035]
[1748903207511,146.4,156.69,156.66,22.34137622]
[1748903207724,146.4,156.69,156.67,27.20023349]
[1748903208420,146.4,156.69,156.67,6.38284291]
[1748903209413,146.4,156.69,156.68,0.5]
[1748903210534,146.4,156.69,156.68,6.88243553]
[1748903211027,27.20023349,156.72,156.68,22.83852437]
[1748903212150,43.8,156.74,156.68,6.88243553]
[1748903212431,27.20023349,156.7,156.68,6.88243553]
[1748903212799,27.20023349,156.69,156.68,0.5]
[1748903213001,27.20023349,156.69,156.67,6.38271288]
[1748903213414,27.20023349,156.68,156.65,19.46325519]
[1748903214601,43.64,156.73,156.66,27.20023349]
[1748903214917,27.20023349,156.7,156.66,0.5]
[1748903215626,27.20023349,156.69,156.66,0.5]
[1748903215812,27.20023349,156.69,156.67,6.38284291]
[1748903217017,50.02046509,156.73,156.67,6.38284291]
[1748903217018,27.20023349,156.7,156.67,6.38284291]
[1748903217824,32.4749,156.75,156.67,22.3399502]
[1748903217825,6.4749,156.75,156.67,22.3399502]
[1748903218027,146.4,156.74,156.7,27.20023349]
[1748903218331,173.60023349,156.74,156.69,27.20023349]
[1748903219003,173.60023349,156.74,156.7,6.38162093]
[1748903219504,1.6131,156.78,156.7,22.33567325]
[1748903219716,28.81333349,156.78,156.73,27.20023349]
[1748903220008,27.20023349,156.77,156.72,27.20023349]
[1748903220334,1.6131,156.78,156.72,27.20023349]
[1748903220502,27.20023349,156.77,156.72,27.20023349]
[1748903220702,27.20023349,156.77,156.71,13.08]
[1748903221024,27.20023349,156.77,156.73,22.33139794]
[1748903221328,27.20023349,156.76,156.73,22.33139794]
[1748903221807,1.6131,156.78,156.73,22.33139794]
[1748903222014,27.20023349,156.76,156.73,22.33139794]
[1748903222213,1.6131,156.78,156.73,6.38039941]
[1748903222214,27.20023349,156.74,156.73,6.38039941]
[1748903222551,27.20023349,156.74,156.68,13.08]
[1748903222848,27.20023349,156.74,156.64,26.0]
[1748903222849,27.20023349,156.69,156.64,22.34327476]
[1748903223040,27.20023349,156.65,156.64,6.38406537]
[1748903223207,28.86283349,156.7,156.64,6.38406537]
[1748903223208,35.24449563,156.7,156.64,6.38406537]
[1748903223718,78.72449563,156.7,156.63,19.46439751]
[1748903224042,146.4,156.69,156.58,40.28023349]
[1748903224238,78.72449563,156.7,156.59,27.20023349]
[1748903224239,146.4,156.68,156.59,27.20023349]
[1748903224806,146.4,156.68,156.6,27.20023349]
[1748903225003,146.4,156.68,156.61,6.38528829]
[1748903225548,146.4,156.68,156.63,27.20023349]
[1748903225549,173.60023349,156.68,156.63,27.20023349]
[1748903225702,173.60023349,156.68,156.61,22.34850902]
[1748903225703,146.4,156.68,156.64,27.20023349]
[1748903225899,27.20023349,156.7,156.65,27.20023349]
[1748903226634,27.20023349,156.69,156.64,40.28023349]
[1748903226801,27.20023349,156.68,156.64,13.08]
[1748903227206,27.20023349,156.68,156.65,6.38365783]
[1748903227518,146.4,156.73,156.66,27.70023349]
[1748903227720,27.20023349,156.72,156.67,27.20023349]
[1748903228917,146.4,156.73,156.67,27.20023349]
[1748903229117,27.20023349,156.74,156.7,22.33567325]
[1748903229514,27.20023349,156.73,156.7,22.33567325]
[1748903230338,27.20023349,156.74,156.7,22.33567325]
[1748903230708,6.1783,156.76,156.7,22.33567325]
[1748903230709,27.20023349,156.73,156.7,22.33567325]
[1748903231137,27.20023349,156.74,156.7,15.95405232]
[1748903231529,6.6264,156.79,156.72,27.20023349]
[1748903231530,27.20023349,156.77,156.72,27.20023349]
[1748903232005,27.20023349,156.78,156.73,27.20023349]
[1748903232422,33.82663349,156.79,156.74,27.20023349]
[1748903232912,35.1407718,156.83,156.74,27.20023349]
[1748903233225,27.20023349,156.8,156.75,49.52878212]
[1748903233417,35.1407718,156.83,156.75,22.32854863]
[1748903233418,27.20023349,156.78,156.75,22.32854863]
[1748903234441,27.20023349,156.77,156.74,6.37999234]
[1748903235309,27.20023349,156.78,156.74,6.37999234]
[1748903235512,27.20023349,156.76,156.74,6.37999234]
[1748903236012,6.37726588,156.81,156.74,6.37999234]
[1748903236013,27.20023349,156.75,156.74,6.37999234]
[1748903236438,27.20023349,156.75,156.72,6.38080653]
[1748903236643,27.20023349,156.73,156.72,6.38080653]
[1748903237012,27.20023349,156.73,156.71,19.08107713]
[1748903237212,27.20023349,156.72,156.71,19.08107713]
[1748903237414,1.5326,156.77,156.71,19.08107713]
[1748903237613,27.20023349,156.73,156.71,19.08107713]
[1748903238037,27.20023349,156.72,156.67,6.38284291]
[1748903238235,27.20023349,156.68,156.67,6.38284291]
[1748903239227,27.20023349,156.68,156.66,6.38314807]
[1748903239416,27.20023349,156.67,156.64,6.38406537]
[1748903239616,6.38073855,156.73,156.64,22.3442288]
[1748903239939,27.20023349,156.69,156.64,50.04446229]
[1748903240319,0.14216157,156.73,156.64,50.04446229]
[1748903240320,27.20023349,156.68,156.64,22.8442288]
[1748903241417,27.20023349,156.67,156.64,22.8442288]
[1748903241749,27.20023349,156.68,156.64,22.8442288]
[1748903241926,27.20023349,156.67,156.64,22.8442288]
[1748903242328,27.20023349,156.66,156.64,6.88406537]
[1748903243532,27.20023349,156.67,156.64,6.88406537]
[1748903243934,26.0,156.72,156.64,22.8442288]
[1748903244240,27.20023349,156.69,156.64,50.04446229]
[1748903246742,27.20023349,156.68,156.64,22.8442288]
[1748903246948,27.20023349,156.68,156.64,50.04446229]
[1748903247153,27.20023349,156.67,156.64,22.8442288]
[1748903248167,27.20023349,156.67,156.64,6.88406537]
[1748903248337,173.60023349,156.66,156.64,6.88406537]
[1748903248520,146.4,156.66,156.64,6.88406537]
[1748903248720,173.60023349,156.66,156.64,6.88406537]
[1748903249426,146.4,156.66,156.64,6.88406537]
[1748903251048,173.60023349,156.66,156.64,6.88406537]
[1748903252045,146.4,156.66,156.64,6.88406537]
[1748903255725,146.4,156.66,156.64,34.08429886]
[1748903255862,146.4,156.66,156.65,27.20023349]
[1748903257342,146.4,156.66,156.65,33.58389132]
[1748903257545,146.4,156.71,156.65,49.5430359]
[1748903257748,146.4,156.71,156.67,27.20023349]
[1748903258760,146.4,156.71,156.68,6.38243553]
[1748903258963,146.4,156.7,156.68,6.38243553]
[1748903259171,146.4,156.7,156.69,27.20023349]
[1748903259345,33.84133349,156.75,156.69,27.20023349]
[1748903259553,33.84133349,156.75,156.7,27.20023349]
[1748903259867,6.6411,156.75,156.7,27.20023349]
[1748903260074,6.6411,156.75,156.71,27.20023349]
[1748903260376,146.4,156.76,156.73,27.20023349]
[1748903260962,146.4,156.76,156.74,6.37999234]
[1748903262771,173.60023349,156.76,156.74,6.37999234]
[1748903262970,173.60023349,156.76,156.72,6.38080653]
[1748903263547,146.4,156.76,156.72,6.38080653]
[1748903263748,146.4,156.76,156.72,33.58104002]
[1748903264062,146.4,156.76,156.73,27.20023349]
[1748903264266,146.4,156.76,156.74,27.20023349]
[1748903265082,146.4,156.76,156.73,27.20023349]
[1748903265260,33.34223349,156.79,156.74,27.20023349]
[1748903266159,33.34223349,156.79,156.72,22.33282286]
[1748903266491,146.4,156.8,156.75,27.20023349]
[1748903266647,146.4,156.8,156.76,27.20023349]
[1748903266852,146.4,156.8,156.74,12.24]
[1748903266853,27.20023349,156.77,156.74,12.24]
[1748903267063,27.20023349,156.77,156.74,6.37999234]
[1748903267680,27.20023349,156.78,156.74,22.3299732]
[1748903267860,27.20023349,156.79,156.74,49.53020669]
[1748903268187,27.20023349,156.78,156.74,6.37999234]
[1748903268986,27.20023349,156.75,156.71,18.6212137]
[1748903269759,27.20023349,156.75,156.71,6.3812137]
[1748903269994,27.20023349,156.74,156.71,6.3812137]
[1748903270364,6.0914,156.76,156.71,6.3812137]
[1748903271087,6.0914,156.76,156.7,6.38162093]
[1748903271294,27.20023349,156.73,156.7,6.38162093]
[1748903271461,6.0914,156.76,156.7,49.53590674]
[1748903271671,33.29163349,156.76,156.71,27.20023349]
[1748903271866,6.0914,156.76,156.7,22.33567325]
[1748903272062,27.20023349,156.74,156.7,22.33567325]
[1748903273887,27.20023349,156.74,156.7,6.38162093]
[1748903274086,27.20023349,156.73,156.7,6.38162093]
[1748903275288,27.20023349,156.73,156.69,6.3820282]
[1748903275678,27.20023349,156.71,156.69,6.3820282]
[1748903276191,152.77966451,156.75,156.68,12.24]
[1748903276192,27.20023349,156.7,156.68,12.24]
[1748903276493,27.20023349,156.69,156.68,12.24]
[1748903276885,27.20023349,156.69,156.67,6.38252859]
[1748903277073,173.60023349,156.68,156.65,6.38365783]
[1748903277782,27.20023349,156.66,156.64,7.42632409]
[1748903277986,27.20023349,156.65,156.64,1.0424184]
[1748903280310,15.9551512,156.69,156.64,1.0424184]
[1748903280311,6.38020893,156.74,156.64,92.90688069]
[1748903280599,26.0,156.74,156.65,27.20023349]
[1748903280771,27.20023349,156.7,156.65,27.20023349]
[1748903280973,27.20023349,156.7,156.65,27.80023349]
[1748903281274,27.20023349,156.7,156.66,6.38325035]
[1748903281771,27.20023349,156.7,156.66,22.34137622]
[1748903283085,27.20023349,156.69,156.66,22.34137622]
[1748903283767,27.20023349,156.7,156.66,22.34137622]
[1748903284813,27.20023349,156.7,156.65,27.80023349]
[1748903284814,27.20023349,156.67,156.64,18.62382341]
[1748903284979,27.20023349,156.65,156.64,18.62382341]
[1748903285172,26.0,156.71,156.64,18.62382341]
[1748903285374,27.20023349,156.69,156.64,61.78422033]
[1748903285672,173.60023349,156.7,156.65,27.20023349]
[1748903286295,146.4,156.7,156.65,27.20023349]
[1748903286499,146.4,156.7,156.66,27.20023349]
[1748903286700,146.4,156.7,156.67,6.38284291]
[1748903287389,146.4,156.7,156.67,49.54018369]
[1748903287595,27.20023349,156.69,156.67,6.38284291]
[1748903287898,27.20023349,156.68,156.67,6.38284291]
[1748903288079,27.20023349,156.69,156.67,6.38284291]
[1748903288396,27.20023349,156.69,156.65,6.38365783]
[1748903288597,27.20023349,156.68,156.65,6.38365783]
[1748903288799,27.20023349,156.69,156.65,6.38365783]
[1748903288976,146.4,156.7,156.65,49.5430359]
[1748903288977,173.60023349,156.7,156.65,49.5430359]
[1748903289175,27.20023349,156.69,156.65,22.34280241]
[1748903291787,173.60023349,156.7,156.65,49.5430359]
[1748903292593,146.4,156.7,156.67,27.20023349]
[1748903292779,146.4,156.69,156.65,22.34280241]
[1748903292978,173.60023349,156.69,156.65,22.34280241]
[1748903293385,146.4,156.69,156.66,27.20023349]
[1748903293595,146.4,156.69,156.67,27.20023349]
[1748903293791,180.24643349,156.75,156.68,27.20023349]
[1748903293981,33.84643349,156.75,156.7,27.20023349]
[1748903294182,27.20023349,156.74,156.69,27.20023349]
[1748903294397,27.20023349,156.73,156.68,27.20023349]
[1748903294895,6.6462,156.75,156.65,63.18346235]
[1748903294896,27.20023349,156.71,156.65,96.56109158]
[1748903295099,27.20023349,156.71,156.67,22.3399502]
[1748903295277,188.7,156.74,156.67,49.54018369]
[1748903295278,27.20023349,156.72,156.67,49.54018369]
[1748903295477,27.20023349,156.73,156.68,27.20023349]
[1748903295717,146.4,156.74,156.7,27.20023349]
[1748903295910,42.28,156.78,156.7,27.20023349]
[1748903295911,27.20023349,156.78,156.73,27.20023349]
[1748903296107,6.4403,156.79,156.73,27.20023349]
[1748903296312,27.20023349,156.78,156.73,27.20023349]
[1748903296484,33.64053349,156.79,156.74,27.20023349]
[1748903297393,148.0066,156.81,156.75,49.52878212]
[1748903297394,27.20023349,156.8,156.75,49.52878212]
[1748903297587,148.0066,156.81,156.76,27.20023349]
[1748903297794,175.20683349,156.81,156.76,27.20023349]
[1748903298400,173.60023349,156.81,156.76,39.24023349]
[1748903298922,27.20023349,156.79,156.76,12.04]
[1748903299223,27.20023349,156.8,156.76,12.04]
[1748903299512,27.20023349,156.8,156.77,6.37877144]
[1748903300216,27.20023349,156.8,156.77,22.32570006]
[1748903300614,146.4,156.81,156.77,49.52593355]
[1748903300988,146.4,156.81,156.77,22.32570006]
[1748903301193,173.60023349,156.81,156.77,22.32570006]
[1748903301393,27.20023349,156.8,156.77,22.32570006]
[1748903302294,173.60023349,156.81,156.77,22.32570006]
[1748903303696,146.4,156.81,156.78,27.20023349]
[1748903303909,146.4,156.8,156.78,27.20023349]
[1748903304313,34.9944718,156.83,156.79,27.20023349]
[1748903304513,8.9944718,156.83,156.79,27.20023349]
[1748903305616,8.9944718,156.83,156.8,6.37755102]
[1748903305921,2.5143718,156.83,156.8,6.37755102]
[1748903306401,2.5143718,156.83,156.8,22.32142857]
[1748903306814,2.5143718,156.83,156.8,49.52166206]
[1748903307912,27.20023349,156.82,156.8,22.32142857]
[1748903308111,29.71460529,156.83,156.8,22.32142857]
[1748903308405,2.5143718,156.83,156.8,49.52166206]
[1748903308718,2.5143718,156.83,156.8,22.32142857]
[1748903309109,27.20023349,156.82,156.8,22.32142857]
[1748903309617,27.20023349,156.82,156.8,6.37755102]
[1748903309794,27.20023349,156.82,156.78,49.52450953]
[1748903311315,27.20023349,156.82,156.78,22.32427604]
[1748903311610,27.20023349,156.82,156.78,6.37836458]
[1748903311809,27.20023349,156.8,156.77,6.37877144]
[1748903312124,27.20023349,156.82,156.77,49.52593355]
[1748903312425,27.20023349,156.82,156.78,27.20023349]
[1748903313003,27.20023349,156.82,156.77,49.52593355]
[1748903313625,2.5143718,156.83,156.77,49.52593355]
[1748903313626,27.20023349,156.81,156.77,22.32570006]
[1748903313804,27.20023349,156.8,156.77,6.37877144]
[1748903314723,27.20023349,156.79,156.77,6.37877144]
[1748903316028,27.20023349,156.8,156.77,6.37877144]
[1748903316628,146.4,156.79,156.77,6.37877144]
[1748903316949,173.60023349,156.79,156.77,6.37877144]
[1748903317242,27.20023349,156.78,156.76,12.04]
[1748903317406,173.60023349,156.77,156.72,6.38080653]
[1748903317603,27.20023349,156.75,156.72,6.38080653]
[1748903318248,173.60023349,156.76,156.72,6.38080653]
[1748903318818,173.60023349,156.76,156.72,22.33282286]
[1748903319131,27.20023349,156.74,156.72,6.38080653]
[1748903319321,173.60023349,156.73,156.71,6.38110564]
[1748903319547,173.60023349,156.73,156.61,129.83762241]
[1748903319548,173.60023349,156.72,156.67,6.38284291]
[1748903319711,27.20023349,156.7,156.67,6.38284291]
[1748903320434,27.20023349,156.7,156.61,103.88]
[1748903320435,27.20023349,156.68,156.61,103.88]
[1748903320647,27.20023349,156.65,156.62,6.3848806]
[1748903322140,27.20023349,156.63,156.57,15.96641838]
[1748903322437,27.20023349,156.58,156.56,11.76]
[1748903322645,27.20023349,156.57,156.56,11.76]
[1748903322827,27.20023349,156.57,156.56,18.14732218]